bitfinex/quotes_BTCUSD_20240820
["timestamp","ask_amount","ask_price","bid_price","bid_amount"]
[1724129855419,0.00123393,60987.0,60986.0,3.34426947]
[1724129855613,0.00123393,60987.0,60986.0,3.44914119]
[1724129856627,0.00123393,60987.0,60986.0,4.20914119]
[1724129857958,0.00123393,60987.0,60986.0,3.44914119]
[1724129858806,0.00123393,60987.0,60986.0,3.93486901]
[1724129859426,0.00123393,60987.0,60986.0,3.86836901]
[1724129859838,0.00123393,60987.0,60986.0,3.74609116]
[1724129860214,0.00123393,60987.0,60986.0,3.66499116]
[1724129860819,0.00123393,60987.0,60986.0,4.40499116]
[1724129862079,0.00123393,60987.0,60986.0,4.40499071]
[1724129862442,0.00123393,60987.0,60986.0,4.40499116]
[1724129863006,0.00123393,60987.0,60986.0,4.50299474]
[1724129863320,0.00123393,60987.0,60986.0,4.40499116]
[1724129863519,0.00123393,60987.0,60986.0,4.52749563]
[1724129864723,0.00123393,60987.0,60986.0,4.93242793]
[1724129864958,0.00123393,60987.0,60986.0,4.8101113]
[1724129866701,0.000826,60991.0,60990.0,1.804571]
[1724129866941,0.000826,60991.0,60990.0,3.82013009]
[1724129866942,1e-06,60991.0,60990.0,3.82013009]
[1724129867178,1e-06,60991.0,60990.0,4.3111566]
[1724129867424,1e-06,60991.0,60990.0,6.1350786]
[1724129867658,0.000826,61007.0,61006.0,1.618562]
[1724129867901,0.000826,61007.0,61006.0,3.03882109]
[1724129868385,0.000826,61007.0,61006.0,4.53872464]
[1724129868914,0.000826,61007.0,61006.0,4.51760623]
[1724129869180,0.000826,61007.0,61006.0,4.49317456]
[1724129869445,0.000826,61007.0,61006.0,3.73317456]
[1724129869685,0.000826,61007.0,61006.0,3.64942464]
[1724129870411,0.000826,61007.0,61006.0,3.70660307]
[1724129870675,0.000826,61007.0,61006.0,3.41648726]
[1724129870911,0.000826,61007.0,61006.0,3.43048726]
[1724129871436,0.000826,61007.0,61006.0,4.22930883]
[1724129871664,0.000826,61007.0,61006.0,4.21887675]
[1724129871907,0.000826,61007.0,61006.0,4.20487675]
[1724129872178,0.000826,61007.0,61006.0,4.21887675]
[1724129872419,0.000826,61007.0,61006.0,4.15915314]
[1724129872943,0.000826,61007.0,61006.0,3.21232653]
[1724129873200,0.000826,61007.0,61006.0,3.22632653]
[1724129873704,0.000826,61007.0,61006.0,3.24032653]
[1724129874203,0.000826,61007.0,61006.0,1.72632653]
[1724129874464,0.000826,61007.0,61006.0,1.74032653]
[1724129874722,0.000826,61007.0,61006.0,1.72632653]
[1724129875178,0.000826,61007.0,61006.0,1.74032653]
[1724129875424,0.000826,61007.0,61006.0,1.69525599]
[1724129875900,0.000826,61007.0,61006.0,1.52390722]
[1724129875901,0.080626,61007.0,61006.0,1.52390722]
[1724129876892,0.080626,61007.0,61006.0,1.50990722]
[1724129877139,0.080626,61007.0,61006.0,1.51990722]
[1724129877651,0.080626,61007.0,61006.0,1.50990722]
[1724129877898,0.080626,61007.0,61006.0,1.49590722]
[1724129878148,0.080626,61007.0,61006.0,1.52190722]
[1724129878658,0.080626,61007.0,61006.0,1.50790722]
[1724129879140,0.080626,61007.0,61006.0,1.52190722]
[1724129879390,0.080626,61007.0,61006.0,1.50990722]
[1724129879883,0.080626,61007.0,61006.0,1.52290722]
[1724129880430,0.080626,61007.0,61006.0,1.52291519]
[1724129883187,0.080626,61007.0,61006.0,1.50993409]
[1724129883389,0.080626,61007.0,61006.0,1.489262]
[1724129883591,0.080626,61007.0,61006.0,1.50993579]
[1724129884850,0.080626,61007.0,61006.0,3.00993579]
[1724129885066,0.000826,61007.0,61006.0,3.00993579]
[1724129885473,0.000826,61007.0,61006.0,2.99593579]
[1724129885679,0.000826,61007.0,61006.0,3.00993579]
[1724129885882,0.000826,61007.0,61006.0,3.02393579]
[1724129887129,0.000826,61007.0,61006.0,3.02394238]
[1724129887753,0.000826,61007.0,61006.0,3.33659115]
[1724129887954,0.000826,61007.0,61006.0,3.37268403]
[1724129888164,0.000826,61007.0,61006.0,3.30948403]
[1724129888370,0.000826,61007.0,61006.0,3.23138403]
[1724129889010,0.000826,61007.0,61006.0,1.19610638]
[1724129889011,0.140126,61007.0,61006.0,1.19610638]
[1724129889211,0.140126,61007.0,61006.0,0.54043438]
[1724129889414,0.24994428,61007.0,61006.0,0.519754]
[1724129890032,0.24994428,61007.0,61006.0,0.505754]
[1724129890238,0.240126,61007.0,61006.0,0.83359]
[1724129890443,0.240126,61007.0,61006.0,0.84359]
[1724129890648,0.240126,61007.0,61006.0,0.81959]
[1724129891056,0.240126,61007.0,61006.0,0.83359]
[1724129891460,0.240126,61007.0,61006.0,0.81959]
[1724129891865,0.240126,61007.0,61006.0,0.83359]
[1724129892071,0.240126,61007.0,61006.0,1.171426]
[1724129892072,0.140126,61007.0,61006.0,1.171426]
[1724129892278,0.140126,61007.0,61006.0,1.19211374]
[1724129899503,0.140126,61007.0,61006.0,0.86427774]
[1724129900168,0.140126,61007.0,61006.0,0.70035974]
[1724129900781,0.140126,61007.0,61006.0,0.86427774]
[1724129902755,0.140126,61007.0,61006.0,0.86430798]
[1724129903210,0.140126,61007.0,61006.0,0.53647198]
[1724129903631,0.140126,61007.0,61006.0,0.86430798]
[1724129904848,0.140126,61007.0,61006.0,0.86430879]
[1724129906740,0.140126,61007.0,61006.0,0.20863679]
[1724129906917,0.140126,61007.0,61006.0,0.53647745]
[1724129907338,0.140126,61007.0,61006.0,0.515754]
[1724129907561,0.140126,61007.0,61006.0,0.5364833]
[1724129909031,0.000826,61007.0,61006.0,0.5364833]
[1724129909253,0.000826,61007.0,61006.0,1.1921553]
[1724129909673,0.000826,61007.0,61006.0,0.8643193]
[1724129909873,0.000826,61007.0,61006.0,0.2086473]
[1724129909874,0.143026,61007.0,61006.0,0.2086473]
[1724129910075,0.143026,61007.0,61006.0,0.5364833]
[1724129910894,0.143026,61007.0,61006.0,0.515754]
[1724129911100,0.143026,61007.0,61006.0,0.53648129]
[1724129914605,0.254626,61007.0,61006.0,0.53648129]
[1724129915058,0.254626,61007.0,61006.0,0.53647399]
[1724129916708,0.254626,61007.0,61006.0,0.20863799]
[1724129916909,0.254626,61007.0,61006.0,0.53647399]
[1724129917120,0.254626,61007.0,61006.0,0.20863799]
[1724129917329,0.354626,61007.0,61006.0,0.04471999]
[1724129917531,0.518541,61007.0,61006.0,0.04471999]
[1724129917736,1.01772077,61007.0,61006.0,0.04471999]
[1724129918491,1.01772077,61007.0,61006.0,0.03071999]
[1724129918921,1.01772077,61007.0,61006.0,0.03072457]
[1724129919176,1.01772077,61007.0,61006.0,0.02072457]
[1724129919345,0.16392,61006.0,61000.0,0.163932]
[1724129919545,0.71160577,61007.0,61000.0,0.163932]
[1724129919546,0.1116,61001.0,61000.0,0.163932]
[1724129919751,0.1116,61001.0,61000.0,0.18465435]
[1724129920570,0.1116,61001.0,61000.0,0.18865435]
[1724129920975,0.1116,61001.0,61000.0,0.18465435]
[1724129922551,0.1116,61001.0,61000.0,0.02972235]
[1724129922750,0.1116,61001.0,61000.0,0.02072235]
[1724129922957,0.1116,61001.0,61000.0,0.02372235]
[1724129923158,0.1116,61001.0,61000.0,0.18765635]
[1724129923363,0.1116,61001.0,61000.0,0.20165635]
[1724129924377,0.11140271,61001.0,61000.0,0.20165635]
[1724129926439,0.11140271,61001.0,61000.0,0.20256495]
[1724129926440,0.25520271,61001.0,61000.0,0.20256495]
[1724129930910,0.25520271,61001.0,61000.0,0.20257936]
[1724129932949,0.25520271,61001.0,61000.0,0.53044736]
[1724129933629,0.25520271,61001.0,61000.0,0.20257936]
[1724129935725,0.25010271,61001.0,61000.0,0.03864536]
[1724129936266,0.25010271,61001.0,61000.0,0.20257936]
[1724129939064,0.1438,61001.0,61000.0,0.20257936]
[1724129939290,0.2554,61001.0,61000.0,0.53044736]
[1724129939491,0.2554,61001.0,61000.0,0.20257936]
[1724129939730,0.84802,61001.0,61000.0,0.03864536]
[1724129940139,1.01936877,61001.0,61000.0,0.03864536]
[1724129940783,0.244626,61001.0,61000.0,0.03864536]
[1724129941002,0.356226,61001.0,61000.0,0.03864536]
[1724129941215,0.356226,61001.0,61000.0,0.02464536]
[1724129941640,0.356226,61001.0,61000.0,0.03864536]
[1724129941876,0.356226,61001.0,61000.0,0.03564536]
[1724129942085,0.356226,61001.0,61000.0,0.03564664]
[1724129942891,0.357226,61001.0,61000.0,0.03564664]
[1724129943286,0.521157,61001.0,61000.0,0.02164664]
[1724129943693,0.521157,61001.0,61000.0,0.03564664]
[1724129944132,0.521157,61001.0,61000.0,0.02164664]
[1724129944511,0.521157,61001.0,61000.0,0.03564664]
[1724129945094,0.357226,61001.0,61000.0,0.03564664]
[1724129947096,0.277726,61001.0,61000.0,0.03564664]
[1724129949481,0.277726,61001.0,61000.0,0.0149086]
[1724129949676,0.277726,61001.0,61000.0,0.03564658]
[1724129950291,0.213426,61001.0,61000.0,0.03564658]
[1724129951131,0.78402,61001.0,61000.0,0.03564658]
[1724129951501,1.01576877,61001.0,61000.0,0.03564658]
[1724129951700,1.34363177,61001.0,61000.0,0.03564658]
[1724129952240,1.51498054,61001.0,61000.0,0.03564658]
[1724129952442,1.34363177,61001.0,61000.0,0.03564658]
[1724129953896,1.34363177,61001.0,61000.0,0.0149086]
[1724129954101,1.34363177,61001.0,61000.0,0.0356473]
[1724129957817,1.34363177,61001.0,61000.0,0.0149086]
[1724129957992,1.34363177,61001.0,61000.0,0.03564734]
[1724129960783,1.51498054,61001.0,61000.0,0.03564734]
[1724129961410,1.51498054,61001.0,61000.0,0.0149086]
[1724129961606,1.51498054,61001.0,61000.0,0.03564734]
[1724129962341,1.34363177,61001.0,61000.0,0.03564734]
[1724129967067,1.34363177,61001.0,61000.0,0.0149086]
[1724129968343,1.34363177,61001.0,61000.0,0.03564734]
[1724129977476,1.59269477,61001.0,61000.0,0.03564734]
[1724129977685,1.74792966,61001.0,61000.0,0.0149086]
[1724129978098,1.89523659,61001.0,61000.0,0.0149086]
[1724129978512,1.74792966,61001.0,61000.0,0.0149086]
[1724129979177,1.74792966,61001.0,61000.0,0.0009086]
[1724129979592,1.74792966,61001.0,61000.0,0.0119086]
[1724129980812,1.74692966,61001.0,61000.0,0.0119086]
[1724129981018,1.75092966,61001.0,61000.0,0.0129086]
[1724129985258,1.87356658,61001.0,61000.0,0.0129086]
[1724129985457,1.60722966,61001.0,61000.0,0.0129086]
[1724129985817,1.72985668,61001.0,61000.0,0.0129086]
[1724129986019,1.60722966,61001.0,61000.0,0.0129086]
[1724129986226,1.72985668,61001.0,61000.0,0.0129086]
[1724129986665,1.60722966,61001.0,61000.0,0.0129086]
[1724129987080,1.72985668,61001.0,61000.0,0.0129086]
[1724129988360,1.72965938,61001.0,61000.0,0.0129086]
[1724129988936,1.87408344,61001.0,61000.0,0.0129086]
[1724129992397,1.87408344,61001.0,60991.0,0.0009086]
[1724129992398,1.296088,60992.0,60991.0,0.0009086]
[1724129992627,1.296088,60992.0,60976.0,0.09191531]
[1724129992628,0.8199,60983.0,60976.0,0.02661531]
[1724129992822,1.76404801,60983.0,60976.0,0.0009086]
[1724129993031,1.8382931,60983.0,60976.0,0.0009086]
[1724129993241,1.96180465,60983.0,60976.0,0.0009086]
[1724129993453,1.96080465,60983.0,60976.0,0.0009086]
[1724129993662,1.86399726,60983.0,60976.0,0.0009086]
[1724129994118,1.86699726,60983.0,60976.0,0.0009086]
[1724129994326,1.86899726,60983.0,60976.0,0.0009086]
[1724129994536,2.01983391,60983.0,60976.0,0.0009086]
[1724129995184,2.01683391,60983.0,60976.0,0.0009086]
[1724129995411,2.01683391,60983.0,60982.0,0.0039086]
[1724129995412,2.10022995,60983.0,60982.0,0.0039086]
[1724129995817,2.10222995,60983.0,60982.0,0.0039086]
[1724129996025,2.10122995,60983.0,60982.0,0.0039086]
[1724129996231,2.10222995,60983.0,60982.0,0.0039086]
[1724129996440,2.07574579,60983.0,60982.0,0.0039086]
[1724129996642,2.07774579,60983.0,60982.0,0.0039086]
[1724129996847,2.24909456,60983.0,60982.0,0.0039086]
[1724129997255,2.07574579,60983.0,60982.0,0.0039086]
[1724129997458,2.02683391,60983.0,60982.0,0.0039086]
[1724129998017,2.02783391,60983.0,60982.0,0.0039086]
[1724129998599,2.02683391,60983.0,60982.0,0.0039086]
[1724129998798,1.43987391,60983.0,60982.0,0.0039086]
[1724129998980,1.55147391,60983.0,60982.0,0.0039086]
[1724129999678,1.22351391,60983.0,60982.0,0.0039086]
[1724130000313,1.22198391,60983.0,60982.0,0.0039086]
[1724130000533,1.22198391,60983.0,60982.0,0.3145906]
[1724130000534,0.011,60983.0,60982.0,0.3145906]
[1724130000732,0.011,60983.0,60982.0,0.6425556]
[1724130000949,0.0006287,61001.0,60985.0,0.1391]
[1724130001160,0.0006287,61001.0,60990.0,0.0605]
[1724130001360,0.0006287,61001.0,60996.0,0.0786]
[1724130001637,0.0006287,61001.0,60991.0,0.02074282]
[1724130001638,0.0006287,61001.0,61000.0,0.163934]
[1724130001849,0.0006287,61001.0,61000.0,0.32377682]
[1724130002063,0.0006287,61001.0,61000.0,0.15984282]
[1724130002269,0.0006287,61001.0,61000.0,0.1391]
[1724130002270,0.1645597,61001.0,61000.0,0.1391]
[1724130002480,0.4934227,61001.0,61000.0,0.0786]
[1724130002711,0.4934227,61001.0,60995.0,0.0605]
[1724130002712,0.491826,60997.0,60996.0,0.003]
[1724130002933,0.163945,60996.0,60995.0,0.1391]
[1724130003384,0.17134877,60997.0,60995.0,0.1391]
[1724130003592,0.33529077,60997.0,60995.0,0.1391]
[1724130004064,0.163938,60999.0,60995.0,0.1391]
[1724130004268,0.1,60998.0,60995.0,0.1391]
[1724130004474,0.263939,60998.0,60995.0,0.1391]
[1724130004689,0.263939,60998.0,60983.0,0.327959]
[1724130004690,0.163945,60996.0,60990.0,0.0605]
[1724130004913,0.163945,60996.0,60995.0,0.014]
[1724130005353,1.09107377,60996.0,60995.0,0.014]
[1724130005566,1.09107377,60996.0,60984.0,0.1416]
[1724130005567,0.163962,60990.0,60984.0,0.1416]
[1724130005787,0.279,60991.0,60984.0,0.305575]
[1724130006019,0.1,60990.0,60985.0,0.16379154]
[1724130006237,0.1,60990.0,60984.0,0.1416]
[1724130006456,0.1,60990.0,60984.0,0.305575]
[1724130006668,0.1,60990.0,60984.0,0.1416]
[1724130006872,0.1,60990.0,60986.0,0.163971]
[1724130007075,0.1,60990.0,60984.0,0.1416]
[1724130007283,0.1,60993.0,60989.0,0.163963]
[1724130007484,0.17134877,60993.0,60986.0,0.16397]
[1724130007713,0.263956,60992.0,60986.0,0.16397]
[1724130008338,0.001,60990.0,60986.0,0.16397]
[1724130008758,0.001,60990.0,60984.0,0.1536]
[1724130008759,0.164962,60990.0,60984.0,0.1536]
[1724130008984,0.1,60989.0,60986.0,0.163971]
[1724130009800,0.1,60989.0,60984.0,0.1425086]
[1724130010129,0.1,60989.0,60986.0,0.16397]
[1724130010361,0.163962,60990.0,60986.0,0.012]
[1724130010565,0.163969,60987.0,60986.0,0.012]
[1724130010770,0.163969,60987.0,60984.0,0.0009086]
[1724130010771,0.15446362,60986.0,60984.0,0.0009086]
[1724130010978,0.163974,60985.0,60984.0,0.0009086]
[1724130011599,0.163971,60987.0,60984.0,0.0139086]
[1724130011807,0.16377741,60985.0,60984.0,0.0139086]
[1724130012008,0.16377741,60985.0,60984.0,0.0029086]
[1724130012215,0.16377741,60985.0,60984.0,0.0009086]
[1724130012595,0.33531877,60987.0,60984.0,0.0039086]
[1724130012799,0.001,60985.0,60984.0,0.0139086]
[1724130012967,0.00080342,60985.0,60984.0,0.0139086]
[1724130013316,0.00080342,60985.0,60984.0,0.0169086]
[1724130013740,0.16477742,60985.0,60984.0,0.0169086]
[1724130014171,0.17134877,60987.0,60984.0,0.0039086]
[1724130014380,0.001,60985.0,60984.0,0.0169086]
[1724130014514,0.00090272,60985.0,60984.0,0.0139086]
[1724130014709,0.163973,60986.0,60984.0,0.0019086]
[1724130015112,0.163973,60986.0,60984.0,0.0009086]
[1724130015113,0.166974,60985.0,60984.0,0.0009086]
[1724130015499,0.16367813,60985.0,60984.0,0.0009086]
[1724130015702,0.16348155,60985.0,60984.0,0.0009086]
[1724130016109,0.332944,60986.0,60985.0,0.163974]
[1724130016110,0.005,60986.0,60985.0,0.163974]
[1724130016308,0.005,60986.0,60985.0,1.17406197]
[1724130016525,0.005,60986.0,60985.0,1.82995997]
[1724130016762,0.005,60986.0,60985.0,3.40073292]
[1724130016976,0.005,60986.0,60985.0,3.03667846]
[1724130017179,0.0006287,61001.0,60985.0,1.81185746]
[1724130017435,0.0006287,61001.0,61000.0,0.163934]
[1724130017896,0.00058106,61001.0,60998.0,0.077]
[1724130018104,0.000826,61007.0,60992.0,0.0819]
[1724130018105,0.17134877,61000.0,60992.0,0.0819]
[1724130018536,0.17134877,61000.0,60995.0,0.163946]
[1724130019316,0.17134877,61000.0,60998.0,0.001]
[1724130019871,0.491811,60999.0,60998.0,0.001]
[1724130020076,0.76315977,60999.0,60998.0,0.001]
[1724130020719,0.82635977,60999.0,60998.0,0.001]
[1724130021125,0.163945,60996.0,60995.0,0.001]
[1724130021324,0.1,60996.0,60992.0,0.163954]
[1724130021595,0.33528977,60998.0,60995.0,0.001]
[1724130021596,0.1,60997.0,60995.0,0.001]
[1724130021804,0.27134877,60997.0,60995.0,0.001]
[1724130021977,0.27134877,60997.0,60992.0,0.163954]
[1724130022196,0.27134877,60997.0,60994.0,0.163948]
[1724130022400,0.003,60996.0,60994.0,0.163948]
[1724130022556,0.00295237,60996.0,60994.0,0.163948]
[1724130022965,0.00295237,60996.0,60995.0,0.639242]
[1724130023171,0.00295237,60996.0,60995.0,0.967137]
[1724130023371,0.00295237,60996.0,60995.0,1.31577027]
[1724130023572,0.000826,61001.0,60995.0,0.80319]
[1724130023734,0.000826,61001.0,61000.0,0.163934]
[1724130023938,0.000826,61001.0,61000.0,0.491802]
[1724130024795,0.005826,61001.0,61000.0,0.491802]
[1724130025388,0.005826,61001.0,60988.0,0.17134877]
[1724130025389,0.163945,60996.0,60991.0,0.163956]
[1724130025568,0.163945,60996.0,60992.0,0.02073925]
[1724130025772,0.163945,60996.0,60991.0,0.163956]
[1724130025977,0.17134877,61000.0,60990.0,0.0819]
[1724130025978,0.327875,60999.0,60990.0,0.0819]
[1724130026179,0.43529677,60995.0,60991.0,0.02073955]
[1724130026356,0.43529677,60995.0,60990.0,0.24586]
[1724130026756,0.43529677,60995.0,60991.0,0.02073971]
[1724130026979,0.43529677,60995.0,60990.0,0.24586]
[1724130027318,0.51819677,60995.0,60991.0,0.02073974]
[1724130027610,0.51819677,60995.0,60990.0,0.16396]
[1724130027830,0.43529677,60995.0,60991.0,0.163958]
[1724130027984,0.43729677,60995.0,60991.0,0.163958]
[1724130028380,0.43529677,60995.0,60991.0,0.163958]
[1724130028957,0.43829677,60995.0,60991.0,0.163958]
[1724130029405,0.43829677,60995.0,60992.0,0.02074046]
[1724130029606,0.43829677,60995.0,60993.0,0.02074046]
[1724130029607,0.43501805,60995.0,60993.0,0.02074046]
[1724130029812,0.43501805,60995.0,60991.0,0.163958]
[1724130030016,0.43201805,60995.0,60992.0,0.02074046]
[1724130030216,0.43201805,60995.0,60993.0,0.02074046]
[1724130030365,0.43201805,60995.0,60989.0,0.327926]
[1724130030366,0.43501805,60995.0,60989.0,0.163962]
[1724130030578,0.43501805,60995.0,60990.0,0.1846995]
[1724130030783,0.43501805,60995.0,60991.0,0.0207405]
[1724130031012,0.43501805,60995.0,60992.0,0.0207405]
[1724130031013,0.43201805,60995.0,60992.0,0.0207405]
[1724130031353,0.43201805,60995.0,60993.0,0.0207405]
[1724130031354,0.43501805,60995.0,60993.0,0.0207405]
[1724130031558,0.43501805,60995.0,60991.0,0.163958]
[1724130031790,0.43501805,60995.0,60992.0,0.02074048]
[1724130032016,0.43501805,60995.0,60993.0,0.02074048]
[1724130032224,0.43501805,60995.0,60991.0,0.163958]
[1724130032410,0.43501805,60995.0,60992.0,0.02074048]
[1724130032609,0.16395,60994.0,60993.0,0.02074048]
[1724130032814,0.43529877,60994.0,60993.0,0.02074048]
[1724130033053,0.43529877,60994.0,60985.0,0.408048]
[1724130033054,0.27134877,60994.0,60985.0,0.408048]
[1724130033269,0.163954,60993.0,60988.0,0.163966]
[1724130033474,0.163956,60992.0,60988.0,0.163966]
[1724130033876,0.17134877,60991.0,60987.0,0.163968]
[1724130034296,0.0813,60988.0,60983.0,0.0009086]
[1724130034502,0.163974,60985.0,60983.0,0.0009086]
[1724130034716,0.1,60985.0,60983.0,0.0009086]
[1724130035523,0.8370529,60985.0,60983.0,0.0009086]
[1724130035769,1.09122077,60985.0,60983.0,0.0009086]
[1724130035969,1.17142077,60985.0,60983.0,0.0009086]
[1724130036142,0.90997177,60985.0,60983.0,0.0009086]
[1724130036757,1.24092077,60985.0,60983.0,0.0009086]
[1724130037199,1.41426954,60985.0,60983.0,0.0009086]
[1724130037330,1.23992077,60985.0,60983.0,0.0009086]
[1724130037526,1.24892077,60985.0,60984.0,0.0019086]
[1724130037734,1.25292077,60985.0,60984.0,0.0029086]
[1724130038542,1.23792077,60985.0,60984.0,0.0009086]
[1724130038999,1.24192077,60985.0,60984.0,0.0019086]
[1724130039998,1.25092077,60985.0,60984.0,0.0029086]
[1724130040651,0.113,60985.0,60984.0,0.0029086]
[1724130040827,0.013,60985.0,60984.0,0.0029086]
[1724130041459,0.55301947,60985.0,60984.0,0.0029086]
[1724130041668,1.25432077,60985.0,60984.0,0.0029086]
[1724130041843,1.58626977,60985.0,60984.0,0.0029086]
[1724130043736,1.58326977,60985.0,60984.0,0.0029086]
[1724130043934,1.58626977,60985.0,60984.0,0.0029086]
[1724130044194,1.63522796,60985.0,60984.0,0.0029086]
[1724130044743,1.63422796,60985.0,60984.0,0.0029086]
[1724130045264,1.63522796,60985.0,60984.0,0.0029086]
[1724130045803,1.63422796,60985.0,60984.0,0.0029086]
[1724130046765,1.58526977,60985.0,60984.0,0.0029086]
[1724130047740,1.63422796,60985.0,60984.0,0.0029086]
[1724130048697,1.58526977,60985.0,60984.0,0.0029086]
[1724130049790,1.58526977,60985.0,60984.0,0.0695086]
[1724130049791,0.113,60985.0,60984.0,0.0695086]
[1724130049994,0.276974,60985.0,60984.0,0.0695086]
[1724130050221,0.276974,60985.0,60984.0,0.0029086]
[1724130050222,0.455974,60985.0,60984.0,0.0029086]
[1724130050417,0.555974,60985.0,60984.0,0.0029086]
[1724130050622,0.546974,60985.0,60984.0,0.0019086]
[1724130050848,0.542974,60985.0,60984.0,0.0009086]
[1724130051073,0.553974,60985.0,60984.0,0.0019086]
[1724130051276,1.17804995,60985.0,60984.0,0.0019086]
[1724130051477,1.17604995,60985.0,60984.0,0.0019086]
[1724130051903,1.17804995,60985.0,60984.0,0.0019086]
[1724130052153,1.46112077,60985.0,60984.0,0.0019086]
[1724130052372,1.78506977,60985.0,60984.0,0.0009086]
[1724130052576,1.09822077,60985.0,60984.0,0.1444086]
[1724130052778,1.09822077,60985.0,60984.0,0.0809086]
[1724130053405,1.09822077,60985.0,60984.0,0.0009086]
[1724130053618,1.09622077,60985.0,60984.0,0.0009086]
[1724130053826,1.09822077,60985.0,60984.0,0.0019086]
[1724130054257,1.09622077,60985.0,60984.0,0.0009086]
[1724130054463,1.26756954,60985.0,60984.0,0.0009086]
[1724130054695,1.26956954,60985.0,60984.0,0.0009086]
[1724130055343,1.09822077,60985.0,60984.0,0.0009086]
[1724130056241,0.107,60985.0,60984.0,0.1422086]
[1724130056441,0.007,60985.0,60984.0,0.1422086]
[1724130056643,0.270974,60985.0,60984.0,0.1422086]
[1724130057469,0.270974,60985.0,60984.0,0.0770086]
[1724130057470,0.263974,60985.0,60984.0,0.0770086]
[1724130057890,1.09822077,60985.0,60984.0,0.0009086]
[1724130058105,1.09622077,60985.0,60984.0,0.0009086]
[1724130059263,1.09122077,60985.0,60984.0,0.0009086]
[1724130059699,1.09822077,60985.0,60984.0,0.0009086]
[1724130059935,1.26603575,60985.0,60984.0,0.0009086]
[1724130060147,1.26103575,60985.0,60984.0,0.0009086]
[1724130060350,1.59755475,60985.0,60984.0,0.0009086]
[1724130060566,1.60255475,60985.0,60984.0,0.0009086]
[1724130060773,1.10479077,60985.0,60984.0,0.0009086]
[1724130062016,0.77684177,60985.0,60984.0,0.0009086]
[1724130062278,0.01357,60985.0,60984.0,0.1418086]
[1724130062514,0.01357,60985.0,60984.0,0.32652449]
[1724130062997,0.01357,60985.0,60984.0,0.16254749]
[1724130063201,0.00657,60985.0,60984.0,0.16254749]
[1724130063412,0.00857,60985.0,60984.0,0.16254749]
[1724130063641,0.00857,60985.0,60984.0,0.32652449]
[1724130063642,0.01357,60985.0,60984.0,0.32652449]
[1724130063856,0.005,60985.0,60984.0,0.98571199]
[1724130064069,0.000826,60987.0,60986.0,0.81986]
[1724130064272,0.000826,60987.0,60986.0,0.92079889]
[1724130064939,0.000826,60987.0,60986.0,0.92079702]
[1724130065538,0.000826,60987.0,60986.0,0.92079739]
[1724130066619,0.000826,60987.0,60986.0,0.92279739]
[1724130066824,0.000826,60987.0,60986.0,0.92479739]
[1724130067247,0.000826,60987.0,60986.0,1.31854139]
[1724130068695,0.000826,60987.0,60986.0,1.35465206]
[1724130068845,0.000826,60987.0,60986.0,1.295804]
[1724130069038,0.000826,60987.0,60986.0,1.35064337]
[1724130069226,0.000826,60987.0,60986.0,1.35664337]
[1724130069431,0.000826,60987.0,60986.0,1.35764337]
[1724130069763,0.000826,60987.0,60986.0,1.35064337]
[1724130069992,0.000826,60987.0,60986.0,1.36264337]
[1724130070188,0.001826,60987.0,60986.0,1.33653845]
[1724130070394,0.000826,60995.0,60994.0,0.966352]
[1724130070596,0.000826,60995.0,60994.0,1.31498745]
[1724130072018,0.000826,61001.0,61000.0,0.81967]
[1724130072215,0.000826,61001.0,61000.0,1.31117245]
[1724130073891,0.000826,61001.0,61000.0,1.31116849]
[1724130074350,0.000826,61001.0,61000.0,2.81116849]
[1724130075385,0.000826,61001.0,61000.0,2.82516849]
[1724130075590,0.000826,61001.0,61000.0,2.82316849]
[1724130076004,0.000826,61001.0,61000.0,2.82516849]
[1724130076429,0.000826,61001.0,61000.0,3.15303649]
[1724130076636,0.000826,61001.0,61000.0,3.16703649]
[1724130076849,0.000826,61001.0,61000.0,1.646306]
[1724130077062,0.000826,61001.0,61000.0,1.66703642]
[1724130078533,0.000826,61001.0,61000.0,1.83838519]
[1724130078960,0.000826,61001.0,61000.0,1.81765477]
[1724130079180,0.000826,61001.0,61000.0,1.8383844]
[1724130080693,0.164704,61021.0,61000.0,1.8383844]
[1724130080694,0.1,61026.0,61025.0,0.943235]
[1724130080880,0.04870535,61041.0,61025.0,0.943235]
[1724130080881,0.51404632,61041.0,61031.0,0.491553]
[1724130081098,0.51404632,61041.0,61031.0,1.224157]
[1724130081329,0.00826,61043.0,61031.0,1.224157]
[1724130081759,0.00826,61043.0,61031.0,1.289557]
[1724130082599,0.00826,61043.0,61031.0,1.301557]
[1724130082809,0.00826,61043.0,61031.0,1.310557]
[1724130083234,0.00826,61043.0,61031.0,1.301557]
[1724130083466,0.00826,61043.0,61031.0,1.146957]
[1724130083467,0.0817,61040.0,61031.0,1.146957]
[1724130083677,0.0817,61040.0,61031.0,1.156957]
[1724130084944,0.0817,61040.0,61031.0,1.169957]
[1724130085176,0.279,61041.0,61031.0,1.169957]
[1724130085385,0.1,61040.0,61031.0,1.181957]
[1724130085625,0.10826,61032.0,61031.0,1.171957]
[1724130085834,0.10826,61032.0,61031.0,1.146957]
[1724130086039,0.10826,61032.0,61031.0,1.164957]
[1724130086487,0.10826,61032.0,61031.0,1.155957]
[1724130086694,0.10826,61032.0,61031.0,1.164957]
[1724130086897,0.10826,61032.0,61031.0,1.155957]
[1724130087307,0.10826,61032.0,61031.0,1.162957]
[1724130093267,0.10826,61032.0,61031.0,1.238957]
[1724130095399,0.10826,61032.0,61031.0,1.25965675]
[1724130096929,0.10826,61032.0,61031.0,1.25963314]
[1724130097349,0.10826,61032.0,61031.0,1.25963097]
[1724130099682,0.10826,61032.0,61031.0,1.82048174]
[1724130099887,0.10826,61032.0,61031.0,1.8565597]
[1724130100294,0.10826,61032.0,61031.0,1.86555146]
[1724130100495,0.10826,61032.0,61031.0,1.85655146]
[1724130100952,0.10826,61032.0,61031.0,1.87055146]
[1724130101157,0.10826,61032.0,61031.0,1.82887369]
[1724130101341,0.10826,61032.0,61031.0,1.92974535]
[1724130101486,0.10826,61032.0,61031.0,3.44374535]
[1724130102072,1e-08,61034.0,61033.0,1.477609]
[1724130102255,1e-08,61034.0,61033.0,2.59757956]
[1724130102456,1e-08,61034.0,61033.0,2.92527056]
[1724130102674,1e-08,61034.0,61033.0,4.55775593]
[1724130103028,1e-08,61034.0,61033.0,4.50056676]
[1724130103211,1e-08,61034.0,61033.0,4.55771156]